fUSD/lending_fUSD_20240528
["ID","MTS","AMOUNT","RATE_DAILY","PERIOD"]
[328139947,1716930670442,-246.89483723,0.00028998,2]
[328139948,1716930670451,-890.90790075,0.00028998,2]
[328139949,1716930670460,-930.57528099,0.00028998,2]
[328139950,1716930670470,-155.0,0.00028998,2]
[328139951,1716930670479,-155.0,0.00028998,2]
[328139952,1716930670489,-155.0,0.00028998,2]
[328139953,1716930670498,-1228.02339539,0.00028998,2]
[328139954,1716930670508,-2355.86968552,0.00028998,2]
[328139955,1716930670517,-5190.00947145,0.00028998,2]
[328139956,1716930670527,-155.22619343,0.00028999,2]
[328139957,1716930670536,-2364.90707739,0.00028999,2]
[328139958,1716930670546,-1000.0,0.00029,5]
[328139959,1716930670555,-155119.69274841,0.00029,2]
[328139960,1716930670564,-2999.99999903,0.00029,30]
[328139961,1716930670574,-1150.0,0.00029,2]
[328139962,1716930670584,-151.0,0.00029,7]
[328139963,1716930670593,-151.0,0.00029,7]
[328139964,1716930670603,-151.0,0.00029,7]
[328139965,1716930670613,-151.0,0.00029,7]
[328139966,1716930670623,-151.0,0.00029,7]
[328139967,1716930670633,-500.0,0.00029041,2]
[328139968,1716930670642,-151.0,0.00029041,7]
[328139969,1716930670652,-165.87244,0.00029041,7]
[328139970,1716930670662,-500.0,0.00029041,2]
[328139971,1716930670671,-909.32,0.00029041,2]
[328139972,1716930670681,-500.0,0.00029041,2]
[328139973,1716930670690,-500.0,0.00029041,2]
[328139974,1716930670699,-500.0,0.00029041,2]
[328139975,1716930670709,-500.0,0.00029041,2]
[328139976,1716930670719,-594.79,0.00029041,2]
[328139977,1716930670728,-500.0,0.00029041,2]
[328139978,1716930670737,-569.9,0.00029041,2]
[328139979,1716930670747,-500.0,0.00029041,2]
[328139980,1716930670756,-500.0,0.00029041,2]
[328139981,1716930670765,-537.02289539,0.00029041,2]
[328139982,1716930670775,-500.0,0.00029041,2]
[328139983,1716930670785,-500.0,0.00029041,2]
[328139984,1716930670795,-500.0,0.00029041,2]
[328139985,1716930670806,-493.78327743,0.00029041,2]
[328139986,1716930670816,-967.79,0.00029041,2]
[328139987,1716930670825,-500.0,0.00029041,2]
[328139988,1716930670835,-1363.1,0.00029041,2]
[328139989,1716930670845,-667.3,0.00029041,2]
[328139990,1716930670854,-500.0,0.00029041,2]
[328139991,1716930670864,-500.0,0.00029041,2]
[328139992,1716930670874,-500.0,0.00029041,2]
[328139993,1716930670884,-500.0,0.00029041,2]
[328139994,1716930670894,-500.0,0.00029041,2]
[328139995,1716930670904,-500.0,0.00029041,2]
[328139996,1716930670914,-444.69009042,0.00029041,2]
[328139997,1716930670923,-500.0,0.00029041,2]
[328139998,1716930670933,-500.0,0.00029041,2]
[328139999,1716930670942,-500.0,0.00029041,2]
[328140000,1716930670952,-813.82,0.00029041,2]
[328140001,1716930670962,-670.95,0.00029041,2]
[328140002,1716930670971,-500.0,0.00029041,2]
[328140003,1716930670982,-500.0,0.00029041,2]
[328140004,1716930670991,-682.1,0.00029041,2]
[328140005,1716930671001,-613.37,0.00029041,2]
[328140006,1716930671011,-500.0,0.00029041,2]
[328140007,1716930671021,-870.5,0.00029041,2]
[328140008,1716930671030,-500.0,0.00029041,2]
[328140009,1716930671040,-746.34,0.00029041,2]
[328140010,1716930671051,-500.0,0.00029041,2]
[328140011,1716930671060,-500.0,0.00029041,2]
[328140012,1716930671069,-500.0,0.00029041,2]
[328140013,1716930671078,-500.0,0.00029041,2]
[328140014,1716930671088,-613.05,0.00029041,2]
[328140015,1716930671099,-500.0,0.00029041,2]
[328140016,1716930671109,-758.6,0.00029041,2]
[328140017,1716930671118,-500.0,0.00029041,2]
[328140018,1716930671128,-500.0,0.00029041,2]
[328140019,1716930671138,-500.0,0.00029041,2]
[328140020,1716930671148,-500.0,0.00029041,2]
[328140021,1716930671157,-527.93,0.00029041,2]
[328140022,1716930671167,-535.29,0.00029041,2]
[328140023,1716930671177,-891.34,0.00029041,2]
[328140024,1716930671187,-500.0,0.00029041,2]
[328140025,1716930671196,-500.0,0.00029041,2]
[328140026,1716930671206,-500.0,0.00029041,2]
[328140027,1716930671216,-500.0,0.00029041,2]
[328140028,1716930671225,-556.26,0.00029041,2]
[328140029,1716930671235,-617.75,0.00029041,2]
[328140030,1716930671244,-500.0,0.00029041,2]
[328140031,1716930671254,-655.52,0.00029041,2]
[328140032,1716930671264,-614.80479884,0.00029041,2]
[328140033,1716930671273,-982.73,0.00029041,2]
[328140034,1716930671283,-500.0,0.00029041,2]
[328140035,1716930671293,-500.0,0.00029041,2]
[328140036,1716930671303,-500.0,0.00029041,2]
[328140037,1716930671318,-879.75,0.00029041,2]
[328140038,1716930671328,-500.0,0.00029041,2]
[328140039,1716930671475,-500.0,0.00029041,2]
[328140040,1716930671486,-500.0,0.00029041,2]
[328140041,1716930671496,-500.0,0.00029041,2]
[328140042,1716930671505,-500.0,0.00029041,2]
[328140043,1716930671515,-500.0,0.00029041,2]
[328140044,1716930671524,-598.93,0.00029041,2]
[328140045,1716930671533,-500.0,0.00029041,2]
[328140046,1716930671543,-607.01,0.00029041,2]
[328140047,1716930671553,-869.48,0.00029041,2]
[328140048,1716930671562,-500.0,0.00029041,2]
[328140049,1716930671571,-219.28950385,0.00029041,2]
[328140050,1716930671580,-500.0,0.00029041,2]
[328140051,1716930671589,-515.25,0.00029041,2]
[328140052,1716930671599,-500.0,0.00029041,2]
[328140053,1716930671609,-501.39,0.00029041,2]
[328140054,1716930671619,-500.0,0.00029041,2]
[328140055,1716930671628,-500.0,0.00029041,2]
[328140056,1716930671637,-500.0,0.00029041,2]
[328140057,1716930671647,-500.0,0.00029041,2]
[328140058,1716930671656,-500.0,0.00029041,2]
[328140059,1716930671666,-500.0,0.00029041,2]
[328140060,1716930671675,-500.0,0.00029041,2]
[328140061,1716930671685,-500.0,0.00029041,2]
[328140062,1716930671694,-1260.25,0.00029041,2]
[328140063,1716930671704,-500.0,0.00029041,2]
[328140064,1716930671713,-500.0,0.00029041,2]
[328140065,1716930671724,-500.0,0.00029041,2]
[328140066,1716930671734,-458.99138495,0.00029041,2]
[328140067,1716930671743,-500.0,0.00029041,2]
[328140068,1716930671753,-500.0,0.00029041,2]
[328140069,1716930671762,-554.17,0.00029041,2]
[328140070,1716930671772,-1185.96,0.00029041,2]
[328140071,1716930671782,-500.0,0.00029041,2]
[328140072,1716930671790,-500.0,0.00029041,2]
[328140073,1716930671799,-500.0,0.00029041,2]
[328140074,1716930671809,-500.0,0.00029041,2]
[328140075,1716930671818,-172.94,0.00029041,2]
[328140076,1716930671827,-500.0,0.00029041,2]
[328140077,1716930671837,-500.0,0.00029041,2]
[328140078,1716930671846,-500.0,0.00029041,2]
[328140079,1716930671855,-500.0,0.00029041,2]
[328140080,1716930671864,-500.0,0.00029041,2]
[328140081,1716930671874,-500.0,0.00029041,2]
[328140082,1716930671883,-500.0,0.00029041,2]
[328140083,1716930671892,-500.0,0.00029041,2]
[328140084,1716930671901,-500.0,0.00029041,2]
[328140085,1716930671911,-512.07,0.00029041,2]
[328140086,1716930671920,-500.0,0.00029041,2]
[328140087,1716930671929,-500.0,0.00029041,2]
[328140088,1716930671939,-500.0,0.00029041,2]
[328140089,1716930671949,-577.36,0.00029041,2]
[328140090,1716930671959,-500.0,0.00029041,2]
[328140091,1716930671968,-500.0,0.00029041,2]
[328140092,1716930671978,-544.23,0.00029041,2]
[328140093,1716930671987,-500.0,0.00029041,2]
[328140094,1716930671997,-917.76,0.00029041,2]
[328140095,1716930672007,-500.0,0.00029041,2]
[328140096,1716930672016,-500.0,0.00029041,2]
[328140097,1716930672026,-500.0,0.00029041,2]
[328140098,1716930672035,-500.0,0.00029041,2]
[328140099,1716930672045,-715.45,0.00029041,2]
[328140100,1716930672055,-504.89,0.00029041,2]
[328140101,1716930672066,-500.0,0.00029041,2]
[328140102,1716930672075,-500.0,0.00029041,2]
[328140103,1716930672084,-500.0,0.00029041,2]
[328140104,1716930672094,-500.0,0.00029041,2]
[328140105,1716930672103,-500.0,0.00029041,2]
[328140106,1716930672112,-937.7,0.00029041,2]
[328140107,1716930672122,-611.87,0.00029041,2]
[328140108,1716930672132,-824.89,0.00029041,2]
[328140109,1716930672141,-500.0,0.00029041,2]
[328140110,1716930672151,-500.0,0.00029041,2]
[328140111,1716930672160,-500.0,0.00029041,2]
[328140112,1716930672170,-587.55306157,0.00029041,2]
[328140113,1716930672179,-739.81,0.00029041,2]
[328140114,1716930672189,-500.0,0.00029041,2]
[328140115,1716930672198,-500.0,0.00029041,2]
[328140116,1716930672208,-1320.63,0.00029041,2]
[328140117,1716930672217,-500.0,0.00029041,2]
[328140118,1716930672227,-1793.48,0.00029041,2]
[328140119,1716930672236,-1192.64,0.00029041,2]
[328140120,1716930672246,-500.0,0.00029041,2]
[328140121,1716930672255,-500.0,0.00029041,2]
[328140122,1716930672265,-252.60150321,0.00029041,2]
[328140123,1716930672274,-850.59,0.00029041,2]
[328140124,1716930672284,-550.9,0.00029041,2]
[328140125,1716930672293,-656.92,0.00029041,2]
[328140126,1716930672303,-9315.09,0.00029041,2]
[328140127,1716930672317,-806.35,0.00029041,2]
[328140128,1716930672326,-500.0,0.00029041,2]
[328140129,1716930672335,-15327.51,0.00029041,2]
[328140130,1716930672343,-635.68,0.00029041,2]
[328140131,1716930672354,-3419.04,0.00029041,2]
[328140132,1716930672363,-1271.68,0.00029041,2]
[328140133,1716930672372,-525.9,0.00029041,2]
[328140134,1716930672381,-1237.95,0.00029041,2]
[328140135,1716930672392,-5036.02,0.00029041,2]
[328140136,1716930672402,-2402.16,0.00029041,2]
[328140137,1716930672412,-583.74,0.00029041,2]
[328140138,1716930672422,-1081.68,0.00029041,2]
[328140139,1716930672432,-500.0,0.00029041,2]
[328140140,1716930672442,-2135.42,0.00029041,2]
[328140141,1716930672451,-500.0,0.00029041,2]
[328140142,1716930672460,-500.0,0.00029041,2]
[328140143,1716930672470,-500.0,0.00029041,2]
[328140144,1716930672480,-500.0,0.00029041,2]
[328140145,1716930672489,-874.24,0.00029041,2]
[328140146,1716930672498,-832.12,0.00029041,2]
[328140147,1716930672508,-889.71,0.00029041,2]
[328140148,1716930672518,-1494.87,0.00029041,2]
[328140149,1716930672528,-588.22,0.00029041,2]
[328140150,1716930672537,-753.43,0.00029041,2]
[328140151,1716930672546,-500.0,0.00029041,2]
[328140152,1716930672557,-656.49,0.00029041,2]
[328140153,1716930672566,-1040.11,0.00029041,2]
[328140154,1716930672575,-5379.01,0.00029041,2]
[328140156,1716930672586,-1151.4,0.00029041,2]
[328140157,1716930672596,-657.54,0.00029041,2]
[328140159,1716930672605,-2503.88,0.00029041,2]
[328140160,1716930672614,-500.0,0.00029041,2]
[328140161,1716930672623,-500.0,0.00029041,2]
[328140162,1716930672633,-500.0,0.00029041,2]
[328140163,1716930672643,-992.19,0.00029041,2]
[328140164,1716930672653,-500.0,0.00029041,2]
[328140165,1716930672662,-523.58,0.00029041,2]
[328140166,1716930672671,-591.51,0.00029041,2]
[328140167,1716930672681,-2469.11,0.00029041,2]
[328140168,1716930672690,-500.0,0.00029041,2]
[328140169,1716930672699,-604.6,0.00029041,2]
[328140170,1716930672708,-500.0,0.00029041,2]
[328140171,1716930672717,-500.0,0.00029041,2]
[328140172,1716930672726,-1881.26,0.00029041,2]
[328140173,1716930672736,-1071.3,0.00029041,2]
[328140174,1716930672746,-1270.47,0.00029041,2]
[328140175,1716930672756,-8259.77,0.00029041,2]
[328140176,1716930672766,-500.0,0.00029041,2]
[328140177,1716930672775,-1123.23,0.00029041,2]
[328140178,1716930672785,-500.0,0.00029041,2]
[328140179,1716930672796,-2563.92,0.00029041,2]
[328140180,1716930672808,-500.0,0.00029041,2]
[328140181,1716930672816,-1027.88,0.00029041,2]
[328140182,1716930672826,-772.72,0.00029041,2]
[328140183,1716930672835,-398.27901626,0.00029041,2]
[328140184,1716930672844,-887.31,0.00029041,2]
[328140185,1716930672854,-914.87,0.00029041,2]
[328140186,1716930672863,-500.0,0.00029041,2]
[328140187,1716930672873,-4971.2,0.00029041,2]
[328140188,1716930672882,-500.0,0.00029041,2]
[328140189,1716930672891,-1127.13,0.00029041,2]
[328140190,1716930672900,-571.26,0.00029041,2]
[328140191,1716930672910,-590.27,0.00029041,2]
[328140192,1716930672918,-500.0,0.00029041,2]
[328140193,1716930672927,-500.0,0.00029041,2]
[328140194,1716930672936,-500.0,0.00029041,2]
[328140195,1716930672946,-606.32,0.00029041,2]
[328140196,1716930672956,-824.0,0.00029041,2]
[328140197,1716930672965,-500.0,0.00029041,2]
[328140198,1716930672975,-853.64,0.00029041,2]
[328140199,1716930672983,-745.85,0.00029041,2]
[328140200,1716930672992,-585.71,0.00029041,2]
[328140201,1716930673001,-1137.45,0.00029041,2]
[328140202,1716930673011,-1448.06,0.00029041,2]
[328140203,1716930673019,-539.51,0.00029041,2]
[328140204,1716930673028,-2302.76,0.00029041,2]
[328140205,1716930673038,-3336.18,0.00029041,2]
[328140206,1716930673046,-500.0,0.00029041,2]
[328140207,1716930673057,-1236.12,0.00029041,2]
[328140208,1716930673067,-287.87399975,0.00029041,2]
[328140209,1716930673076,-500.0,0.00029041,2]
[328140210,1716930673085,-500.0,0.00029041,2]
[328140211,1716930673096,-500.0,0.00029041,2]
[328140212,1716930673105,-885.34,0.00029041,2]
[328140213,1716930673115,-1036.79,0.00029041,2]
[328140214,1716930673124,-602.93,0.00029041,2]
[328140215,1716930673133,-13852.98,0.00029041,2]
[328140216,1716930673142,-500.0,0.00029041,2]
[328140217,1716930673152,-1313.69,0.00029041,2]
[328140218,1716930673161,-1592.22,0.00029041,2]
[328140219,1716930673170,-916.61,0.00029041,2]
[328140220,1716930673179,-1158.67,0.00029041,2]
[328140221,1716930673187,-266.7384113,0.00029041,2]
[328140222,1716930673196,-2650.73,0.00029041,2]
[328140223,1716930673205,-500.0,0.00029041,2]
[328140224,1716930673215,-4639.4,0.00029041,2]
[328140225,1716930673223,-500.0,0.00029041,2]
[328140226,1716930673232,-720.94,0.00029041,2]
[328140227,1716930673241,-850.51,0.00029041,2]
[328140228,1716930673251,-1212.71,0.00029041,2]
[328140229,1716930673260,-1305.79,0.00029041,2]
[328140230,1716930673269,-1077.58,0.00029041,2]
[328140231,1716930673278,-564.13,0.00029041,2]
[328140232,1716930673288,-789.13,0.00029041,2]
[328140233,1716930673297,-928.91,0.00029041,2]
[328140234,1716930673312,-500.0,0.00029041,2]
[328140235,1716930673321,-500.0,0.00029041,2]
[328140236,1716930673330,-920.12,0.00029041,2]
[328140237,1716930673340,-717.42,0.00029041,2]
[328140238,1716930673352,-881.35,0.00029041,2]
[328140239,1716930673363,-500.0,0.00029041,2]
[328140240,1716930673374,-654.73,0.00029041,2]
[328140241,1716930673384,-500.0,0.00029041,2]
[328140242,1716930673396,-500.0,0.00029041,2]
[328140243,1716930673407,-3338.18,0.00029041,2]
[328140244,1716930673418,-500.0,0.00029041,2]
[328140245,1716930673429,-1966.13,0.00029041,2]
[328140246,1716930673445,-570.33,0.00029041,2]
[328140247,1716930673456,-500.0,0.00029041,2]
[328140248,1716930673467,-500.0,0.00029041,2]
[328140249,1716930673478,-500.0,0.00029041,2]
[328140250,1716930673489,-500.0,0.00029041,2]
[328140251,1716930673499,-1420.49,0.00029041,2]
[328140252,1716930673510,-1625.97,0.00029041,2]
[328140253,1716930673521,-500.0,0.00029041,2]
[328140254,1716930673531,-647.0,0.00029041,2]
[328140255,1716930673542,-500.0,0.00029041,2]
[328140256,1716930673556,-1101.55,0.00029041,2]
[328140257,1716930673567,-500.0,0.00029041,2]
[328140258,1716930673578,-5271.34,0.00029041,2]
[328140259,1716930673588,-4085.09,0.00029041,2]
[328140260,1716930673599,-896.38,0.00029041,2]
[328140261,1716930673610,-500.0,0.00029041,2]
[328140262,1716930673621,-500.0,0.00029041,2]
[328140263,1716930673632,-3085.09,0.00029041,2]
[328140264,1716930673642,-1027.97,0.00029041,2]
[328140265,1716930673652,-678.18,0.00029041,2]
[328140266,1716930673662,-607.8,0.00029041,2]
[328140267,1716930673673,-707.12,0.00029041,2]
[328140268,1716930673684,-500.0,0.00029041,2]
[328140269,1716930673694,-2974.94,0.00029041,2]
[328140270,1716930673704,-1217.15,0.00029041,2]
[328140271,1716930673714,-1190.26,0.00029041,2]
[328140272,1716930673724,-592.19,0.00029041,2]
[328140273,1716930673733,-500.0,0.00029041,2]
[328140274,1716930673743,-4371.46,0.00029041,2]
[328140275,1716930673753,-500.0,0.00029041,2]
[328140276,1716930673762,-1044.37,0.00029041,2]
[328140277,1716930673772,-545.58457368,0.00029041,2]
[328140278,1716930673782,-500.0,0.00029041,2]
[328140279,1716930673791,-513.35,0.00029041,2]
[328140280,1716930673802,-1474.98,0.00029041,2]
[328140281,1716930673811,-500.0,0.00029041,2]
[328140282,1716930673820,-500.0,0.00029041,2]
[328140283,1716930673830,-3176.31,0.00029041,2]
[328140284,1716930673840,-687.58,0.00029041,2]
[328140285,1716930673849,-3513.06,0.00029041,2]
[328140286,1716930673858,-576.75,0.00029041,2]
[328140287,1716930673867,-500.0,0.00029041,2]
[328140288,1716930673877,-705.7,0.00029041,2]
[328140289,1716930673886,-503.73,0.00029041,2]
[328140290,1716930673896,-500.0,0.00029041,2]
[328140291,1716930673905,-5000.0,0.00029059,2]
[328140292,1716930673914,-157.052905,0.00029148,28]
[328140293,1716930673923,-25000.0,0.00029154,2]
[328140294,1716930673932,-166.99392,0.00029156,4]
[328140295,1716930673941,-5000.0,0.00029163,2]
[328140296,1716930673950,-10000.0,0.00029191,2]
[328140297,1716930673960,-150.0,0.000292,6]
[328140298,1716930673969,-500.0,0.00029315,2]
[328140299,1716930673978,-500.0,0.00029315,2]
[328140300,1716930673987,-909.32,0.00029315,2]
[328140301,1716930673996,-500.0,0.00029315,2]
[328140302,1716930674005,-500.0,0.00029315,2]
[328140303,1716930674014,-620.70171905,0.00029315,2]
[328140304,1716930674023,-500.0,0.00029315,2]
[328140305,1716930674032,-594.79,0.00029315,2]
[328140306,1716930674041,-500.0,0.00029315,2]
[328140307,1716930674050,-569.9,0.00029315,2]
[328140308,1716930674059,-500.0,0.00029315,2]
[328140309,1716930674068,-500.0,0.00029315,2]
[328140310,1716930674077,-500.0,0.00029315,2]
[328140311,1716930674086,-500.0,0.00029315,2]
[328140312,1716930674095,-500.0,0.00029315,2]
[328140313,1716930674104,-967.79,0.00029315,2]
[328140314,1716930674114,-500.0,0.00029315,2]
[328140315,1716930674123,-1363.1,0.00029315,2]
[328140316,1716930674132,-667.3,0.00029315,2]
[328140317,1716930674141,-500.0,0.00029315,2]
[328140318,1716930674151,-500.0,0.00029315,2]
[328140319,1716930674160,-500.0,0.00029315,2]
[328140320,1716930674170,-500.0,0.00029315,2]
[328140321,1716930674179,-500.0,0.00029315,2]
[328140322,1716930674188,-500.0,0.00029315,2]
[328140323,1716930674197,-500.0,0.00029315,2]
[328140324,1716930674206,-500.0,0.00029315,2]
[328140325,1716930674215,-500.0,0.00029315,2]
[328140326,1716930674224,-813.82,0.00029315,2]
[328140327,1716930674233,-670.95,0.00029315,2]
[328140328,1716930674242,-500.0,0.00029315,2]
[328140329,1716930674252,-432.44,0.00029315,2]
[328140330,1716930674260,-682.1,0.00029315,2]
[328140331,1716930674270,-613.37,0.00029315,2]
[328140332,1716930674279,-500.0,0.00029315,2]
[328140333,1716930674288,-870.5,0.00029315,2]
[328140334,1716930674297,-500.0,0.00029315,2]
[328140335,1716930674310,-746.34,0.00029315,2]
[328140336,1716930674319,-500.0,0.00029315,2]
[328140337,1716930674328,-500.0,0.00029315,2]
[328140338,1716930674337,-500.0,0.00029315,2]
[328140339,1716930674347,-613.05,0.00029315,2]
[328140340,1716930674356,-500.0,0.00029315,2]
[328140341,1716930674365,-758.6,0.00029315,2]
[328140342,1716930674375,-500.0,0.00029315,2]
[328140343,1716930674384,-500.0,0.00029315,2]
[328140344,1716930674517,-500.0,0.00029315,2]
[328140345,1716930674527,-500.0,0.00029315,2]
[328140346,1716930674537,-527.93,0.00029315,2]
[328140347,1716930674546,-535.29,0.00029315,2]
[328140348,1716930674557,-891.34,0.00029315,2]
[328140349,1716930674566,-500.0,0.00029315,2]
[328140350,1716930674575,-500.0,0.00029315,2]
[328140351,1716930674585,-500.0,0.00029315,2]
[328140352,1716930674594,-556.26,0.00029315,2]
[328140353,1716930674603,-500.0,0.00029315,2]
[328140354,1716930674613,-617.75,0.00029315,2]
[328140355,1716930674622,-500.0,0.00029315,2]
[328140356,1716930674632,-655.52,0.00029315,2]
[328140357,1716930674641,-982.73,0.00029315,2]
[328140358,1716930674651,-500.0,0.00029315,2]
[328140359,1716930674660,-500.0,0.00029315,2]
[328140360,1716930674670,-500.0,0.00029315,2]
[328140361,1716930674679,-879.75,0.00029315,2]
[328140362,1716930674690,-500.0,0.00029315,2]
[328140363,1716930674699,-500.0,0.00029315,2]
[328140364,1716930674708,-500.0,0.00029315,2]
[328140365,1716930674718,-323.24,0.00029315,2]
[328140366,1716930674727,-500.0,0.00029315,2]
[328140367,1716930674737,-500.0,0.00029315,2]
[328140368,1716930674746,-598.93,0.00029315,2]
[328140369,1716930674756,-500.0,0.00029315,2]
[328140370,1716930674765,-607.01,0.00029315,2]
[328140371,1716930674774,-869.48,0.00029315,2]
[328140372,1716930674783,-500.0,0.00029315,2]
[328140373,1716930674792,-500.0,0.00029315,2]
[328140374,1716930674803,-515.25,0.00029315,2]
[328140375,1716930674813,-500.0,0.00029315,2]
[328140376,1716930674822,-501.39,0.00029315,2]
[328140377,1716930674832,-500.0,0.00029315,2]
[328140378,1716930674841,-500.0,0.00029315,2]
[328140379,1716930674851,-500.0,0.00029315,2]
[328140380,1716930674860,-500.0,0.00029315,2]
[328140381,1716930674870,-500.0,0.00029315,2]
[328140382,1716930674879,-151.0,0.00029315,7]
[328140383,1716930674888,-500.0,0.00029315,2]
[328140384,1716930674898,-500.0,0.00029315,2]
[328140385,1716930674907,-500.0,0.00029315,2]
[328140386,1716930674916,-1260.25,0.00029315,2]
[328140387,1716930674926,-282.644554,0.00029315,7]
[328140388,1716930674935,-500.0,0.00029315,2]
[328140389,1716930674944,-151.0,0.00029315,7]
[328140390,1716930674954,-282.644554,0.00029315,7]
[328140391,1716930674963,-500.0,0.00029315,2]
[328140392,1716930674972,-500.0,0.00029315,2]
[328140393,1716930674981,-453.22946676,0.00029315,2]
[328140394,1716930674990,-246.891112,0.00029315,7]
[328140395,1716930675000,-623.47959429,0.00029315,2]
[328140396,1716930675009,-554.17,0.00029315,2]
[328140397,1716930675020,-1185.96,0.00029315,2]
[328140398,1716930675031,-500.0,0.00029315,2]
[328140399,1716930675040,-532.18662566,0.00029315,2]
[328140400,1716930675050,-500.0,0.00029315,2]
[328140401,1716930675060,-500.0,0.00029315,2]
[328140402,1716930675069,-172.94,0.00029315,2]
[328140403,1716930675078,-500.0,0.00029315,2]
[328140404,1716930675088,-500.0,0.00029315,2]
[328140405,1716930675097,-500.0,0.00029315,2]
[328140406,1716930675107,-500.0,0.00029315,2]
[328140407,1716930675116,-500.0,0.00029315,2]
[328140408,1716930675125,-500.0,0.00029315,2]
[328140409,1716930675134,-500.0,0.00029315,2]
[328140410,1716930675144,-500.0,0.00029315,2]
[328140411,1716930675153,-512.07,0.00029315,2]
[328140412,1716930675163,-500.0,0.00029315,2]
[328140413,1716930675173,-242.149988,0.00029315,7]
[328140414,1716930675183,-500.0,0.00029315,2]
[328140415,1716930675192,-500.0,0.00029315,2]
[328140416,1716930675202,-500.0,0.00029315,2]
[328140417,1716930675211,-577.36,0.00029315,2]
[328140418,1716930675220,-500.0,0.00029315,2]
[328140419,1716930675229,-500.0,0.00029315,2]
[328140420,1716930675239,-544.23,0.00029315,2]
[328140421,1716930675249,-456.55707589,0.00029315,2]
[328140422,1716930675258,-917.76,0.00029315,2]
[328140423,1716930675268,-500.0,0.00029315,2]
[328140424,1716930675277,-500.0,0.00029315,2]
[328140425,1716930675286,-500.0,0.00029315,2]
[328140426,1716930675295,-500.0,0.00029315,2]
[328140427,1716930675306,-151.0,0.00029315,7]
[328140428,1716930675317,-715.45,0.00029315,2]
[328140429,1716930675327,-151.0,0.00029315,7]
[328140430,1716930675336,-151.0,0.00029315,7]
[328140431,1716930675346,-504.89,0.00029315,2]
[328140432,1716930675356,-268.062551,0.00029315,7]
[328140433,1716930675365,-500.0,0.00029315,2]
[328140434,1716930675374,-500.0,0.00029315,2]
[328140435,1716930675383,-500.0,0.00029315,2]
[328140436,1716930675393,-500.0,0.00029315,2]
[328140437,1716930675403,-500.0,0.00029315,2]
[328140438,1716930675412,-937.7,0.00029315,2]
[328140439,1716930675422,-611.87,0.00029315,2]
[328140440,1716930675433,-824.89,0.00029315,2]
[328140441,1716930675443,-500.0,0.00029315,2]
[328140442,1716930675453,-500.0,0.00029315,2]
[328140443,1716930675462,-152.079673,0.00029315,7]
[328140444,1716930675472,-500.0,0.00029315,2]
[328140445,1716930675481,-151.0,0.00029315,7]
[328140446,1716930675490,-152.079673,0.00029315,7]
[328140447,1716930675499,-739.81,0.00029315,2]
[328140448,1716930675508,-500.0,0.00029315,2]